fUSD/lending_fUSD_20250325
["ID","MTS","AMOUNT","RATE_DAILY","PERIOD"]
[356657764,1742923855965,-500.0,0.00046575,120]
[356657765,1742923855974,-517.13586164,0.00046575,120]
[356657766,1742923855984,-528.56800309,0.00046575,120]
[356657767,1742923855994,-500.0,0.00046575,120]
[356657768,1742923856003,-620.95287406,0.00046575,120]
[356657769,1742923856013,-505.1580267,0.00046575,120]
[356657770,1742923856022,-511.19002478,0.00046575,120]
[356657771,1742923856032,-526.49216627,0.00046575,120]
[356657772,1742923856041,-500.0,0.00046575,120]
[356657773,1742923856051,-502.59710816,0.00046575,120]
[356657774,1742923856059,-535.88846011,0.00046575,120]
[356657775,1742923856070,-341.02031166,0.00046575,120]
[356657776,1742923856079,-500.0,0.00046575,120]
[356657777,1742923856089,-500.0,0.00046575,120]
[356657778,1742923856100,-530.87213552,0.00046575,120]
[356657779,1742923856115,-549.24147175,0.00046575,120]
[356657780,1742923856125,-500.0,0.00046575,2]
[356657781,1742923856134,-515.05537739,0.00046575,120]
[356657782,1742923856144,-533.48829084,0.00046575,120]
[356657783,1742923856154,-508.58880019,0.00046575,120]
[356657784,1742923856163,-530.44096052,0.00046575,120]
[356657785,1742923856172,-500.0,0.00046575,120]
[356657786,1742923856182,-509.6719383,0.00046575,120]
[356657787,1742923856193,-219.58975038,0.00046575,2]
[356657788,1742923856203,-513.33204589,0.00046575,120]
[356657789,1742923856212,-511.32550812,0.00046575,120]
[356657790,1742923856221,-500.0,0.00046575,2]
[356657791,1742923856231,-503.08869155,0.00046575,120]
[356657792,1742923856241,-522.64824198,0.00046575,120]
[356657793,1742923856250,-531.99129506,0.00046575,120]
[356657794,1742923856260,-519.2230834,0.00046575,120]
[356657795,1742923856270,-500.0,0.00046575,120]
[356657796,1742923856284,-506.58600622,0.00046575,120]
[356657797,1742923856293,-535.53105253,0.00046575,120]
[356657798,1742923856303,-502.37602658,0.00046575,30]
[356657799,1742923856313,-513.63720963,0.00046575,120]
[356657800,1742923856323,-514.50749803,0.00046575,120]
[356657801,1742923856333,-576.8155696,0.00046575,120]
[356657802,1742923856343,-545.63439119,0.00046575,120]
[356657803,1742923856354,-516.94658555,0.00046575,120]
[356657804,1742923856363,-507.78953639,0.00046575,120]
[356657805,1742923856373,-520.15951067,0.00046575,120]
[356657806,1742923856383,-500.0,0.00046575,120]
[356657807,1742923856392,-500.0,0.00046575,120]
[356657808,1742923856401,-526.1633187,0.00046575,120]
[356657809,1742923856410,-517.50600725,0.00046575,120]
[356657810,1742923856420,-546.29867639,0.00046575,120]
[356657811,1742923856430,-500.0,0.00046575,2]
[356657812,1742923856439,-500.0,0.00046575,7]
[356657813,1742923856448,-537.25346259,0.00046575,120]
[356657814,1742923856458,-451.58138375,0.00046575,120]
[356657815,1742923856467,-531.99968297,0.00046575,120]
[356657816,1742923856477,-526.59020082,0.00046575,120]
[356657817,1742923856486,-537.43105187,0.00046575,120]
[356657818,1742923856496,-525.49832277,0.00046575,120]
[356657819,1742923856506,-508.09705077,0.00046575,120]
[356657820,1742923856515,-534.37540818,0.00046575,120]
[356657821,1742923856525,-505.46331772,0.00046575,120]
[356657822,1742923856534,-509.0055358,0.00046575,120]
[356657823,1742923856546,-599.41265538,0.00046575,120]
[356657824,1742923856555,-538.87585791,0.00046575,120]
[356657825,1742923856565,-507.81849255,0.00046575,120]
[356657826,1742923856575,-507.98937472,0.00046575,120]
[356657827,1742923856584,-533.59876995,0.00046575,120]
[356657828,1742923856594,-501.8163504,0.00046575,120]
[356657829,1742923856603,-515.44414821,0.00046575,120]
[356657830,1742923856613,-543.86793185,0.00046575,120]
[356657831,1742923856622,-521.38726236,0.00046575,120]
[356657832,1742923856632,-525.90038203,0.00046575,120]
[356657833,1742923856641,-521.16839118,0.00046575,30]
[356657834,1742923856651,-513.73431649,0.00046575,120]
[356657835,1742923856660,-505.92275632,0.00046575,120]
[356657836,1742923856669,-506.82201781,0.00046575,120]
[356657837,1742923856678,-500.0,0.00046575,120]
[356657838,1742923856688,-518.53014118,0.00046575,120]
[356657839,1742923856697,-501.58551177,0.00046575,120]
[356657840,1742923856707,-507.59604027,0.00046575,120]
[356657841,1742923856716,-504.24535095,0.00046575,120]
[356657842,1742923856725,-591.41464561,0.00046575,120]
[356657843,1742923856735,-500.0,0.00046575,120]
[356657844,1742923856743,-503.07509582,0.00046575,120]
[356657845,1742923856752,-515.77496942,0.00046575,120]
[356657846,1742923856761,-500.0,0.00046575,120]
[356657847,1742923856770,-520.43977779,0.00046575,120]
[356657848,1742923856780,-529.50483793,0.00046575,120]
[356657849,1742923856789,-523.35339968,0.00046575,120]
[356657850,1742923856798,-503.7356594,0.00046575,120]
[356657851,1742923856807,-550.75056649,0.00046575,120]
[356657852,1742923856816,-1075.26090191,0.00046575,120]
[356657853,1742923856826,-514.66911504,0.00046575,120]
[356657854,1742923856835,-516.68693358,0.00046575,120]
[356657855,1742923856845,-500.0,0.00046575,30]
[356657856,1742923856855,-502.16417528,0.00046575,120]
[356657857,1742923856865,-538.6150442,0.00046575,120]
[356657858,1742923856875,-501.83245028,0.00046575,120]
[356657859,1742923856885,-528.3369314,0.00046575,120]
[356657860,1742923856894,-515.98528573,0.00046575,120]
[356657861,1742923856904,-513.76252311,0.00046575,120]
[356657862,1742923856914,-503.74280273,0.00046575,120]
[356657863,1742923856923,-501.32557238,0.00046575,120]
[356657864,1742923856933,-517.14780967,0.00046575,120]
[356657865,1742923856942,-526.6154306,0.00046575,120]
[356657866,1742923856951,-565.11564786,0.00046575,120]
[356657867,1742923856961,-553.97778373,0.00046575,120]
[356657868,1742923856970,-551.81900668,0.00046575,120]
[356657869,1742923856980,-503.25370477,0.00046575,120]
[356657870,1742923856989,-517.99977255,0.00046575,120]
[356657871,1742923856998,-584.12583658,0.00046575,120]
[356657872,1742923857008,-510.26634335,0.00046575,120]
[356657873,1742923857017,-509.93768383,0.00046575,120]
[356657874,1742923857026,-622.74,0.00046575,120]
[356657875,1742923857036,-508.1398216,0.00046575,120]
[356657876,1742923857045,-500.0,0.00046575,120]
[356657877,1742923857054,-567.73048454,0.00046575,120]
[356657878,1742923857063,-553.41397378,0.00046575,120]
[356657879,1742923857073,-513.01823769,0.00046575,120]
[356657880,1742923857082,-502.58063961,0.00046575,120]
[356657881,1742923857092,-516.99307834,0.00046575,60]
[356657882,1742923857101,-514.72420584,0.00046575,120]
[356657883,1742923857117,-512.6058463,0.00046575,120]
[356657884,1742923857126,-500.0,0.00046575,120]
[356657885,1742923857136,-500.0,0.00046575,120]
[356657886,1742923857147,-422.88651183,0.00046575,120]
[356657887,1742923857157,-530.46053249,0.00046575,120]
[356657888,1742923857166,-519.54915931,0.00046575,120]
[356657889,1742923857176,-561.08878871,0.00046575,120]
[356657890,1742923857187,-557.90735584,0.00046575,120]
[356657891,1742923857197,-512.28093689,0.00046575,120]
[356657892,1742923857206,-543.92950001,0.00046575,120]
[356657893,1742923857216,-516.03462912,0.00046575,120]
[356657894,1742923857225,-570.87955661,0.00046575,120]
[356657895,1742923857235,-512.18548435,0.00046575,120]
[356657896,1742923857245,-507.8473974,0.00046575,120]
[356657897,1742923857255,-527.45149914,0.00046575,120]
[356657898,1742923857263,-500.0112566,0.00046575,120]
[356657899,1742923857273,-536.75039977,0.00046575,120]
[356657900,1742923857283,-522.22255733,0.00046575,120]
[356657901,1742923857292,-533.09540083,0.00046575,120]
[356657902,1742923857301,-556.39021898,0.00046575,120]
[356657903,1742923857390,-2529.30693934,0.00046575,120]
[356657904,1742923857401,-558.98233028,0.00046575,120]
[356657905,1742923857411,-506.69917444,0.00046575,120]
[356657906,1742923857420,-500.0,0.00046575,120]
[356657907,1742923857430,-646.64848521,0.00046575,120]
[356657908,1742923857439,-523.42495799,0.00046575,120]
[356657909,1742923857448,-500.0,0.00046575,120]
[356657910,1742923857457,-500.0,0.00046575,120]
[356657911,1742923857468,-520.77202119,0.00046575,120]
[356657912,1742923857478,-536.3324673,0.00046575,120]
[356657913,1742923857488,-504.7539038,0.00046575,120]
[356657914,1742923857498,-534.6550735,0.00046575,120]
[356657915,1742923857508,-514.97815912,0.00046575,120]
[356657916,1742923857518,-536.89075194,0.00046575,120]
[356657917,1742923857528,-508.66379754,0.00046575,120]
[356657918,1742923857538,-500.0,0.00046575,120]
[356657919,1742923857548,-530.62247467,0.00046575,120]
[356657920,1742923857558,-528.94854263,0.00046575,120]
[356657921,1742923857568,-555.67732247,0.00046575,120]
[356657922,1742923857579,-527.99293878,0.00046575,120]
[356657923,1742923857592,-505.43841819,0.00046575,120]
[356657924,1742923857602,-554.48091647,0.00046575,120]
[356657925,1742923857614,-500.0,0.00046575,120]
[356657926,1742923857624,-532.61834472,0.00046575,120]
[356657927,1742923857634,-506.56709551,0.00046575,120]
[356657928,1742923857643,-554.04411493,0.00046575,120]
[356657929,1742923857653,-511.71943599,0.00046575,120]
[356657930,1742923857663,-522.06403055,0.00046575,120]
[356657931,1742923857673,-500.0,0.00046575,120]
[356657932,1742923857682,-524.22775392,0.00046575,120]
[356657933,1742923857692,-530.82969587,0.00046575,120]
[356657934,1742923857701,-539.73438093,0.00046575,120]
[356657935,1742923857711,-558.95405581,0.00046575,120]
[356657936,1742923857720,-500.0,0.00046575,2]
[356657937,1742923857730,-515.44672729,0.00046575,120]
[356657938,1742923857740,-527.35997527,0.00046575,120]
[356657939,1742923857749,-500.0,0.00046575,120]
[356657940,1742923857759,-525.22355244,0.00046575,120]
[356657941,1742923857768,-538.96349137,0.00046575,120]
[356657942,1742923857778,-541.1415579,0.00046575,120]
[356657943,1742923857787,-508.76638395,0.00046575,120]
[356657944,1742923857797,-500.0,0.00046575,120]
[356657945,1742923857807,-511.68957338,0.00046575,120]
[356657946,1742923857816,-530.19980836,0.00046575,120]
[356657947,1742923857826,-536.30745689,0.00046575,120]
[356657948,1742923857839,-510.83192896,0.00046575,120]
[356657949,1742923857850,-470.58343003,0.00046575,120]
[356657950,1742923857859,-517.76454027,0.00046575,120]
[356657951,1742923857869,-500.0,0.00046575,120]
[356657952,1742923857879,-500.0,0.00046575,120]
[356657953,1742923857888,-532.81757655,0.00046575,120]
[356657954,1742923857897,-500.0,0.00046575,120]
[356657955,1742923857906,-510.60620063,0.00046575,120]
[356657956,1742923857916,-545.09581451,0.00046575,120]
[356657957,1742923857925,-500.0,0.00046575,120]
[356657958,1742923857935,-524.65927954,0.00046575,120]
[356657959,1742923857944,-511.33118574,0.00046575,120]
[356657960,1742923857954,-465.37691779,0.00046575,120]
[356657961,1742923857963,-501.85445084,0.00046575,120]
[356657962,1742923857971,-532.38946595,0.00046575,120]
[356657963,1742923857980,-525.56272996,0.00046575,120]
[356657964,1742923857989,-515.89189572,0.00046575,120]
[356657965,1742923857999,-500.0,0.00046575,120]
[356657966,1742923858008,-500.0,0.00046575,120]
[356657967,1742923858017,-536.53387283,0.00046575,120]
[356657968,1742923858026,-565.2561543,0.00046575,120]
[356657969,1742923858036,-536.06667609,0.00046575,120]
[356657970,1742923858046,-571.90444632,0.00046575,120]
[356657971,1742923858055,-510.94059966,0.00046575,120]
[356657972,1742923858064,-553.76694132,0.00046575,120]
[356657973,1742923858073,-533.79352559,0.00046575,120]
[356657974,1742923858082,-500.0,0.00046575,120]
[356657975,1742923858091,-528.52194181,0.00046575,120]
[356657976,1742923858100,-500.0,0.00046575,120]
[356657977,1742923858115,-453.26571056,0.00046575,120]
[356657978,1742923858125,-525.4008505,0.00046575,120]
[356657979,1742923858134,-526.33976075,0.00046575,120]
[356657980,1742923858143,-562.91437771,0.00046575,120]
[356657981,1742923858154,-551.34728272,0.00046575,120]
[356657982,1742923858163,-557.79481963,0.00046575,120]
[356657983,1742923858172,-531.34975993,0.00046575,120]
[356657984,1742923858183,-858.34,0.00046575,120]
[356657985,1742923858192,-588.13,0.00046575,120]
[356657986,1742923858201,-628.99407723,0.00046575,120]
[356657987,1742923858211,-500.0,0.00046575,120]
[356657988,1742923858220,-500.0,0.00046575,120]
[356657989,1742923858229,-576.34126022,0.00046575,120]
[356657990,1742923858238,-506.13058165,0.00046575,120]
[356657991,1742923858247,-500.0,0.00046575,120]
[356657992,1742923858256,-524.43369054,0.00046575,120]
[356657993,1742923858266,-780.37,0.00046575,120]
[356657994,1742923858275,-163.44415161,0.00046575,120]
[356657995,1742923858284,-548.06197837,0.00046575,120]
[356657996,1742923858294,-521.38785437,0.00046575,120]
[356657997,1742923858303,-500.0,0.00046575,120]
[356657998,1742923858312,-537.7352971,0.00046575,120]
[356657999,1742923858322,-525.87033259,0.00046575,120]
[356658000,1742923858331,-211.40119315,0.00046575,120]
[356658001,1742923858340,-500.0,0.00046575,120]
[356658002,1742923858350,-540.69930323,0.00046575,120]
[356658003,1742923858360,-500.0,0.00046575,120]
[356658004,1742923858370,-518.15548794,0.00046575,120]
[356658005,1742923858379,-557.12804192,0.00046575,120]
[356658006,1742923858389,-508.21263832,0.00046575,120]
[356658007,1742923858399,-500.0,0.00046575,120]
[356658008,1742923858408,-536.14382797,0.00046575,120]
[356658009,1742923858418,-500.0,0.00046575,120]
[356658010,1742923858426,-500.0,0.00046575,120]
[356658011,1742923858435,-542.91320757,0.00046575,120]
[356658012,1742923858445,-540.02674587,0.00046575,120]
[356658013,1742923858454,-617.13454445,0.00046575,120]
[356658014,1742923858463,-508.95733155,0.00046575,120]
[356658015,1742923858472,-559.59295585,0.00046575,120]
[356658016,1742923858481,-521.33795211,0.00046575,120]
[356658017,1742923858491,-504.70219815,0.00046575,120]
[356658018,1742923858500,-513.72835615,0.00046575,120]
[356658019,1742923858509,-500.0,0.00046575,120]
[356658020,1742923858518,-578.94482878,0.00046575,120]
[356658021,1742923858528,-530.03209283,0.00046575,120]
[356658022,1742923858537,-500.0,0.00046575,120]
[356658023,1742923858546,-587.56976564,0.00046575,120]
[356658024,1742923858555,-500.0,0.00046575,120]
[356658025,1742923858564,-563.51243817,0.00046575,120]
[356658026,1742923858573,-561.25168528,0.00046575,120]
[356658027,1742923858582,-514.10006284,0.00046575,120]
[356658028,1742923858591,-524.21961175,0.00046575,120]
[356658029,1742923858600,-515.61609502,0.00046575,120]
[356658030,1742923858609,-506.58150635,0.00046575,120]
[356658031,1742923858619,-563.16073887,0.00046575,120]
[356658032,1742923858629,-500.0,0.00046575,120]
[356658033,1742923858638,-600.07031378,0.00046575,120]
[356658034,1742923858648,-518.18780061,0.00046575,120]
[356658035,1742923858657,-500.0,0.00046575,120]
[356658036,1742923858666,-511.08533641,0.00046575,120]
[356658037,1742923858675,-575.51629798,0.00046575,120]
[356658038,1742923858684,-553.96448633,0.00046575,120]
[356658039,1742923858693,-580.155987,0.00046575,120]
[356658040,1742923858703,-532.79319822,0.00046575,120]
[356658041,1742923858712,-506.4021402,0.00046575,120]
[356658042,1742923858721,-506.29893379,0.00046575,120]
[356658043,1742923858730,-383.90765849,0.00046575,120]
[356658044,1742923858739,-514.87301959,0.00046575,120]
[356658045,1742923858748,-524.08726781,0.00046575,120]
[356658046,1742923858757,-593.47777207,0.00046575,120]
[356658047,1742923858767,-525.840455,0.00046575,120]
[356658048,1742923858776,-500.0,0.00046575,120]
[356658049,1742923858785,-500.0,0.00046575,120]
[356658050,1742923858794,-529.10442125,0.00046575,120]
[356658051,1742923858803,-500.0,0.00046575,120]
[356658052,1742923858812,-532.6218738,0.00046575,120]
[356658053,1742923858821,-500.0,0.00046575,120]
[356658054,1742923858830,-500.0,0.00046575,120]
[356658055,1742923858839,-562.30019404,0.00046575,120]
[356658056,1742923858848,-500.0,0.00046575,120]
[356658057,1742923858858,-500.74592921,0.00046575,120]
[356658058,1742923858867,-497.84085687,0.00046575,120]
[356658059,1742923858876,-1176.11,0.00046575,120]
[356658060,1742923858885,-500.0,0.00046575,120]
[356658061,1742923858895,-500.0,0.00046575,120]
[356658062,1742923858904,-500.0,0.00046575,120]
[356658063,1742923858988,-500.0,0.00046575,120]
[356658064,1742923858998,-500.0,0.00046575,120]
[356658065,1742923859007,-500.0,0.00046575,120]
[356658066,1742923859016,-500.0,0.00046575,120]
[356658067,1742923859025,-500.0,0.00046575,120]
[356658068,1742923859034,-785.04,0.00046575,120]
[356658069,1742923859043,-785.04,0.00046575,120]
[356658070,1742923859052,-785.04,0.00046575,120]
[356658071,1742923859061,-785.04,0.00046575,120]
[356658072,1742923859070,-785.04,0.00046575,120]
[356658073,1742923859079,-785.04,0.00046575,120]
[356658074,1742923859089,-785.04,0.00046575,120]
[356658075,1742923859099,-785.04,0.00046575,120]
[356658076,1742923859110,-785.04,0.00046575,120]
[356658077,1742923859121,-785.04,0.00046575,120]
[356658078,1742923859130,-9068.11,0.00046575,2]
[356658079,1742923859139,-785.04,0.00046575,120]
[356658080,1742923859150,-785.04,0.00046575,120]
[356658081,1742923859159,-785.04,0.00046575,120]
[356658082,1742923859168,-785.04,0.00046575,120]
[356658083,1742923859176,-357.134768,0.00046575,120]
[356658084,1742923859187,-785.04,0.00046575,120]
[356658085,1742923859196,-785.04,0.00046575,120]
[356658086,1742923859205,-785.04,0.00046575,120]
[356658087,1742923859214,-785.04,0.00046575,120]
[356658088,1742923859223,-2000.0,0.00046575,2]
[356658089,1742923859233,-1500.0,0.00046575,120]
[356658090,1742923859242,-500.0,0.00046575,120]
[356658091,1742923859253,-3820.03,0.00046575,120]
[356658092,1742923859263,-500.0,0.00046575,120]
[356658093,1742923859273,-500.0,0.00046575,120]
[356658094,1742923859282,-500.0,0.00046575,120]
[356658095,1742923859291,-500.0,0.00046575,120]
[356658096,1742923859300,-528.83548298,0.00046575,120]
[356658097,1742923859309,-500.0,0.00046575,120]
[356658098,1742923859318,-408.561477,0.00046575,120]
[356658099,1742923859327,-500.0,0.00046575,120]
[356658100,1742923859336,-536.13774593,0.00046575,120]
[356658101,1742923859346,-500.0,0.00046575,120]
[356658102,1742923859354,-500.0,0.00046575,120]
[356658103,1742923859363,-500.0,0.00046575,120]
[356658104,1742923859373,-500.0,0.00046575,120]
[356658105,1742923859382,-500.0,0.00046575,7]
[356658106,1742923859391,-500.0,0.00046575,120]
[356658107,1742923859400,-500.0,0.00046575,120]
[356658108,1742923859409,-804.33,0.00046575,120]
[356658109,1742923859418,-500.0,0.00046575,120]
[356658110,1742923859427,-540.86940766,0.00046575,120]
[356658111,1742923859436,-166.457663,0.00046575,120]
[356658112,1742923859445,-514.1122436,0.00046575,120]
[356658113,1742923859454,-535.23496342,0.00046575,120]
[356658114,1742923859463,-500.0,0.00046575,120]
[356658115,1742923859471,-500.0,0.00046575,120]
[356658116,1742923859480,-500.0,0.00046575,120]
[356658117,1742923859489,-500.0,0.00046575,120]
[356658118,1742923859497,-1965.89,0.00046575,120]
[356658119,1742923859507,-535.71159665,0.00046575,15]
[356658120,1742923859515,-506.85059333,0.00046575,120]
[356658121,1742923859526,-500.0,0.00046575,120]
[356658122,1742923859535,-522.02838138,0.00046575,120]
[356658123,1742923859543,-500.0,0.00046575,120]
[356658124,1742923859553,-500.0,0.00046575,100]
[356658125,1742923859563,-500.0,0.00046575,120]
[356658126,1742923859571,-522.06187141,0.00046575,120]
[356658127,1742923859580,-524.92386843,0.00046575,120]
[356658128,1742923859589,-578.92334856,0.00046575,120]
[356658129,1742923859598,-500.0,0.00046575,120]
[356658130,1742923859606,-538.95971776,0.00046575,120]
[356658131,1742923859615,-1021.37,0.00046575,120]
[356658132,1742923859625,-500.0,0.00046575,120]
[356658133,1742923859633,-543.99902122,0.00046575,120]
[356658134,1742923859642,-500.0,0.00046575,120]
[356658135,1742923859651,-613.88938527,0.00046575,120]
[356658136,1742923859659,-500.0,0.00046575,120]
[356658137,1742923859668,-500.0,0.00046575,120]
[356658138,1742923859677,-500.0,0.00046575,120]
[356658139,1742923859686,-524.49915616,0.00046575,120]
[356658140,1742923859695,-500.0,0.00046575,120]
[356658141,1742923859704,-500.0,0.00046575,120]
[356658142,1742923859713,-517.04894354,0.00046575,120]
[356658143,1742923859722,-500.0,0.00046575,120]
[356658144,1742923859731,-500.0,0.00046575,120]
[356658145,1742923859740,-500.0,0.00046575,120]
[356658146,1742923859749,-625.86880362,0.00046575,120]
[356658147,1742923859758,-312.65641668,0.00046575,120]
[356658148,1742923859767,-500.0,0.00046575,120]
[356658149,1742923859775,-523.9481875,0.00046575,120]
[356658150,1742923859785,-500.0,0.00046575,120]
[356658151,1742923859794,-500.0,0.00046575,120]
[356658152,1742923859803,-500.0,0.00046575,120]
[356658153,1742923859812,-711.82,0.00046575,120]
[356658154,1742923859821,-500.0,0.00046575,120]
[356658155,1742923859830,-500.0,0.00046575,120]
[356658156,1742923859839,-515.56528201,0.00046575,120]
[356658157,1742923859848,-512.43751292,0.00046575,120]
[356658158,1742923859857,-588.46293049,0.00046575,120]
[356658159,1742923859867,-556.72688515,0.00046575,120]
[356658160,1742923859877,-570.64984892,0.00046575,120]
[356658161,1742923859885,-500.0,0.00046575,120]
[356658162,1742923859895,-500.0,0.00046575,120]
[356658163,1742923859904,-535.06684471,0.00046575,120]
[356658164,1742923859912,-500.0,0.00046575,120]
[356658165,1742923859921,-534.07689662,0.00046575,120]
[356658166,1742923859931,-500.0,0.00046575,120]
[356658167,1742923859940,-545.89680586,0.00046575,120]
[356658168,1742923859949,-508.13752383,0.00046575,120]
[356658169,1742923859958,-664.54,0.00046575,120]
[356658170,1742923859967,-500.0,0.00046575,120]
[356658171,1742923859976,-553.86178378,0.00046575,120]
[356658172,1742923859984,-507.20062285,0.00046575,120]
[356658173,1742923859994,-500.0,0.00046575,120]
[356658174,1742923860003,-511.31804046,0.00046575,120]
[356658175,1742923860012,-521.27781913,0.00046575,120]
[356658176,1742923860021,-500.0,0.00046575,120]
[356658177,1742923860031,-500.0,0.00046575,120]
[356658178,1742923860040,-500.0,0.00046575,120]
[356658179,1742923860050,-500.0,0.00046575,120]
[356658180,1742923860060,-528.13919825,0.00046575,120]
[356658181,1742923860069,-500.0,0.00046575,120]
[356658182,1742923860078,-500.0,0.00046575,120]
[356658183,1742923860087,-500.0,0.00046575,120]
[356658184,1742923860096,-527.91078034,0.00046575,120]
[356658185,1742923860108,-511.06144286,0.00046575,120]
[356658186,1742923860120,-500.0,0.00046575,120]
[356658187,1742923860129,-500.0,0.00046575,120]
[356658188,1742923860138,-500.0,0.00046575,120]
[356658189,1742923860148,-559.3686946,0.00046575,120]
[356658190,1742923860157,-523.20912534,0.00046575,120]
[356658191,1742923860166,-510.38572687,0.00046575,120]
[356658192,1742923860175,-1427.99,0.00046575,120]
[356658193,1742923860186,-517.31963667,0.00046575,120]
[356658194,1742923860195,-500.0,0.00046575,120]
[356658195,1742923860204,-565.97341162,0.00046575,120]
[356658196,1742923860215,-509.63136909,0.00046575,120]
[356658197,1742923860225,-505.15504086,0.00046575,120]
[356658198,1742923860234,-503.48762557,0.00046575,120]
[356658199,1742923860243,-551.28116892,0.00046575,120]
[356658200,1742923860252,-500.0,0.00046575,120]
[356658201,1742923860262,-543.87302934,0.00046575,120]
[356658202,1742923860271,-500.0,0.00046575,120]
[356658203,1742923860280,-508.72973305,0.00046575,120]
[356658204,1742923860290,-552.20093218,0.00046575,120]
[356658205,1742923860300,-500.0,0.00046575,120]
[356658206,1742923860310,-500.0,0.00046575,120]
[356658207,1742923860319,-500.0,0.00046575,120]
[356658208,1742923860328,-500.0,0.00046575,120]
[356658209,1742923860337,-511.49648097,0.00046575,120]
[356658210,1742923860419,-500.0,0.00046575,120]
[356658211,1742923860429,-504.55368971,0.00046575,120]
[356658212,1742923860438,-500.0,0.00046575,120]
[356658213,1742923860448,-500.0,0.00046575,120]
[356658214,1742923860457,-539.22153363,0.00046575,120]
[356658215,1742923860466,-500.0,0.00046575,120]
[356658216,1742923860476,-500.0,0.00046575,120]
[356658217,1742923860485,-510.25770977,0.00046575,120]
[356658218,1742923860494,-500.0,0.00046575,120]
[356658219,1742923860503,-500.0,0.00046575,120]
[356658220,1742923860512,-943.09,0.00046575,120]
[356658221,1742923860521,-600.14,0.00046575,120]
[356658222,1742923860530,-500.0,0.00046575,120]
[356658223,1742923860539,-575.36130906,0.00046575,120]
[356658224,1742923860549,-500.0,0.00046575,120]
[356658225,1742923860559,-500.0,0.00046575,120]
[356658226,1742923860568,-488.0,0.00046575,120]
[356658227,1742923860577,-507.4767179,0.00046575,120]
[356658228,1742923860586,-512.25936232,0.00046575,120]
[356658229,1742923860595,-500.0,0.00046575,120]
[356658230,1742923860604,-1013.19,0.00046575,30]
[356658231,1742923860613,-287.77296752,0.00046575,120]
[356658232,1742923860623,-587.18257936,0.00046575,120]
[356658233,1742923860632,-537.03039811,0.00046575,120]
[356658234,1742923860641,-559.31020371,0.00046575,120]
[356658235,1742923860650,-543.60080575,0.00046575,120]
[356658236,1742923860660,-522.03041981,0.00046575,120]
[356658237,1742923860669,-500.0,0.00046575,120]
[356658238,1742923860679,-539.94564937,0.00046575,120]
[356658239,1742923860688,-500.0,0.00046575,120]
[356658240,1742923860696,-500.0,0.00046575,120]
[356658241,1742923860706,-500.0,0.00046575,120]
[356658242,1742923860715,-500.0,0.00046575,120]
[356658243,1742923860724,-508.13955774,0.00046575,120]
[356658244,1742923860733,-522.87746149,0.00046575,120]
[356658245,1742923860742,-500.0,0.00046575,120]
[356658246,1742923860751,-529.91827274,0.00046575,120]
[356658247,1742923860759,-642.69204523,0.00046575,120]
[356658248,1742923860769,-500.0,0.00046575,120]
[356658249,1742923860778,-500.0,0.00046575,120]
[356658250,1742923860787,-524.19633805,0.00046575,120]
[356658251,1742923860796,-500.0,0.00046575,120]
[356658252,1742923860805,-500.0,0.00046575,120]
[356658253,1742923860814,-500.0,0.00046575,120]
[356658254,1742923860823,-500.0,0.00046575,120]
[356658255,1742923860833,-500.0,0.00046575,120]
[356658256,1742923860842,-546.46531197,0.00046575,120]
[356658257,1742923860851,-521.5980491,0.00046575,120]
[356658258,1742923860860,-4431.56,0.00046575,120]
[356658259,1742923860869,-520.24686049,0.00046575,120]
[356658260,1742923860878,-544.99006563,0.00046575,120]
[356658261,1742923860887,-500.0,0.00046575,120]
[356658262,1742923860897,-500.0,0.00046575,120]
[356658263,1742923860907,-509.85191514,0.00046575,120]